fUSD/lending_fUSD_20240104
["ID","MTS","AMOUNT","RATE_DAILY","PERIOD"]
[310227169,1704403867272,-837.99,0.00034794,2]
[310227170,1704403867281,-861.66,0.00034794,2]
[310227171,1704403867291,-500.0,0.00034794,2]
[310227172,1704403867301,-721.44,0.00034794,2]
[310227173,1704403867311,-528.09,0.00034794,2]
[310227174,1704403867321,-853.51,0.00034794,2]
[310227175,1704403867331,-500.0,0.00034794,2]
[310227176,1704403867341,-500.0,0.00034794,2]
[310227177,1704403867351,-500.0,0.00034794,2]
[310227178,1704403867362,-769.96,0.00034794,2]
[310227179,1704403867372,-500.0,0.00034794,2]
[310227180,1704403867382,-500.0,0.00034794,2]
[310227181,1704403867392,-500.0,0.00034794,2]
[310227182,1704403867402,-500.0,0.00034794,2]
[310227183,1704403867411,-500.0,0.00034794,2]
[310227184,1704403867422,-500.0,0.00034794,2]
[310227185,1704403867432,-500.0,0.00034794,2]
[310227186,1704403867442,-669.16,0.00034794,2]
[310227187,1704403867453,-500.0,0.00034794,2]
[310227188,1704403867463,-1213.39,0.00034794,2]
[310227189,1704403867473,-500.0,0.00034794,2]
[310227190,1704403867483,-1401.12,0.00034794,2]
[310227191,1704403867493,-645.52,0.00034794,2]
[310227192,1704403867504,-500.0,0.00034794,2]
[310227193,1704403867514,-2121.42,0.00034794,2]
[310227194,1704403867524,-500.0,0.00034794,2]
[310227195,1704403867533,-500.0,0.00034794,2]
[310227196,1704403867543,-667.97,0.00034794,2]
[310227197,1704403867553,-500.0,0.00034794,2]
[310227198,1704403867565,-810.45,0.00034794,2]
[310227199,1704403867574,-500.0,0.00034794,2]
[310227200,1704403867584,-153.8,0.000348,2]
[310227201,1704403867594,-153.8,0.000348,2]
[310227202,1704403867603,-3608.60853205,0.000349,2]
[310227203,1704403867613,-3608.6085319,0.000349,2]
[310227204,1704403867623,-150.0,0.00034926,2]
[310227205,1704403867633,-150.0,0.00034969,2]
[310227206,1704403867643,-150.0,0.0003498,2]
[310227207,1704403867653,-2500.0,0.00035,2]
[310227208,1704403867663,-16395.51223475,0.00035,2]
[310227209,1704403867673,-201.35722068,0.00035,2]
[310227210,1704403867683,-617.90544107,0.00035,4]
[310227211,1704403867693,-600.0,0.00035,36]
[310227212,1704403867702,-18957.59309852,0.00035,4]
[310227213,1704403867712,-446.78845482,0.00035,4]
[310227214,1704403867723,-450.0,0.00035,3]
[310227215,1704403867734,-170.66923937,0.00035,2]
[310227216,1704403867744,-1534.2792282,0.00035012,7]
[310227217,1704403867754,-150.0,0.00035016,2]
[310227218,1704403867763,-150.0,0.00035058,2]
[310227219,1704403867773,-159.14,0.00035067,2]
[310227220,1704403867783,-500.0,0.00035068,2]
[310227221,1704403867793,-500.0,0.00035068,2]
[310227222,1704403867803,-707.71,0.00035068,2]
[310227223,1704403867813,-500.0,0.00035068,2]
[310227224,1704403867823,-500.0,0.00035068,2]
[310227225,1704403867833,-273.18849118,0.00035068,2]
[310227226,1704403867843,-500.0,0.00035068,2]
[310227227,1704403867853,-500.0,0.00035068,2]
[310227228,1704403867863,-500.0,0.00035068,2]
[310227229,1704403867873,-500.0,0.00035068,2]
[310227230,1704403867882,-500.0,0.00035068,2]
[310227231,1704403867891,-500.0,0.00035068,2]
[310227232,1704403867901,-500.0,0.00035068,2]
[310227233,1704403867911,-626.40576934,0.00035068,2]
[310227234,1704403867920,-500.0,0.00035068,2]
[310227235,1704403867930,-500.0,0.00035068,2]
[310227236,1704403867939,-500.0,0.00035068,2]
[310227237,1704403867949,-153.05208137,0.00035068,2]
[310227238,1704403867960,-500.0,0.00035068,2]
[310227239,1704403867970,-159.66190313,0.00035068,2]
[310227240,1704403867982,-564.53159451,0.00035068,2]
[310227241,1704403867994,-500.0,0.00035068,2]
[310227242,1704403868006,-500.0,0.00035068,2]
[310227243,1704403868020,-500.0,0.00035068,2]
[310227244,1704403868029,-331.64,0.00035068,2]
[310227245,1704403868039,-500.0,0.00035068,2]
[310227246,1704403868048,-500.0,0.00035068,2]
[310227247,1704403868060,-500.0,0.00035068,2]
[310227248,1704403868070,-500.0,0.00035068,2]
[310227249,1704403868080,-264.4237018,0.00035068,2]
[310227250,1704403868092,-500.0,0.00035068,2]
[310227251,1704403868104,-500.0,0.00035068,2]
[310227252,1704403868115,-500.0,0.00035068,2]
[310227253,1704403868125,-500.0,0.00035068,2]
[310227254,1704403868135,-166.72,0.00035068,2]
[310227255,1704403868144,-500.0,0.00035068,2]
[310227256,1704403868154,-500.0,0.00035068,2]
[310227257,1704403868164,-516.36,0.00035068,2]
[310227258,1704403868174,-524.24,0.00035068,2]
[310227259,1704403868184,-500.0,0.00035068,2]
[310227260,1704403868194,-251.98,0.00035068,2]
[310227261,1704403868205,-500.0,0.00035068,2]
[310227262,1704403868215,-521.99,0.00035068,2]
[310227263,1704403868225,-150.0,0.00035068,2]
[310227264,1704403868234,-500.0,0.00035068,2]
[310227265,1704403868245,-500.0,0.00035068,2]
[310227266,1704403868255,-500.0,0.00035068,2]
[310227267,1704403868264,-500.0,0.00035068,2]
[310227268,1704403868274,-500.0,0.00035068,2]
[310227269,1704403868283,-500.0,0.00035068,2]
[310227270,1704403868295,-500.0,0.00035068,2]
[310227271,1704403868305,-500.0,0.00035068,2]
[310227272,1704403868317,-500.0,0.00035068,2]
[310227273,1704403868328,-500.0,0.00035068,2]
[310227274,1704403868337,-500.0,0.00035068,2]
[310227275,1704403868345,-500.0,0.00035068,2]
[310227276,1704403868354,-500.0,0.00035068,2]
[310227277,1704403868364,-3350.37,0.00035068,2]
[310227278,1704403868374,-500.0,0.00035068,2]
[310227279,1704403868385,-500.0,0.00035068,2]
[310227280,1704403868396,-896.02,0.00035068,2]
[310227281,1704403868407,-648.69,0.00035068,2]
[310227282,1704403868417,-500.0,0.00035068,2]
[310227283,1704403868426,-2514.46,0.00035068,2]
[310227284,1704403868437,-549.76,0.00035068,2]
[310227285,1704403868448,-500.0,0.00035068,2]
[310227286,1704403868459,-500.0,0.00035068,2]
[310227287,1704403868469,-1011.28,0.00035068,2]
[310227288,1704403868479,-500.0,0.00035068,2]
[310227289,1704403868679,-500.0,0.00035068,2]
[310227290,1704403868694,-509.23,0.00035068,2]
[310227291,1704403868704,-500.0,0.00035068,2]
[310227292,1704403868714,-2059.9,0.00035068,2]
[310227293,1704403868724,-500.0,0.00035068,2]
[310227294,1704403868733,-299.51,0.00035068,2]
[310227295,1704403868743,-500.0,0.00035068,2]
[310227296,1704403868753,-500.0,0.00035068,2]
[310227297,1704403868762,-651.77,0.00035068,2]
[310227298,1704403868772,-500.0,0.00035068,2]
[310227299,1704403868782,-626.07,0.00035068,2]
[310227300,1704403868791,-500.0,0.00035068,2]
[310227301,1704403868801,-500.0,0.00035068,2]
[310227302,1704403868811,-529.91,0.00035068,2]
[310227303,1704403868820,-2064.33,0.00035068,2]
[310227304,1704403868831,-500.0,0.00035068,2]
[310227305,1704403868840,-509.68,0.00035068,2]
[310227306,1704403868850,-1343.6,0.00035068,2]
[310227307,1704403868860,-500.0,0.00035068,2]
[310227308,1704403868870,-711.75,0.00035068,2]
[310227309,1704403868880,-500.0,0.00035068,2]
[310227310,1704403868890,-500.0,0.00035068,2]
[310227311,1704403868900,-522.78,0.00035068,2]
[310227312,1704403868909,-1000.94,0.00035068,2]
[310227313,1704403868920,-1077.26,0.00035068,2]
[310227314,1704403868930,-500.0,0.00035068,2]
[310227315,1704403868940,-500.0,0.00035068,2]
[310227316,1704403868950,-982.47,0.00035068,2]
[310227317,1704403868960,-500.0,0.00035068,2]
[310227318,1704403868970,-5148.24,0.00035068,2]
[310227319,1704403868980,-500.0,0.00035068,2]
[310227320,1704403868990,-500.0,0.00035068,2]
[310227321,1704403869001,-615.48,0.00035068,2]
[310227322,1704403869010,-500.0,0.00035068,2]
[310227323,1704403869020,-625.78,0.00035068,2]
[310227324,1704403869030,-500.0,0.00035068,2]
[310227325,1704403869040,-500.0,0.00035068,2]
[310227326,1704403869050,-1193.24,0.00035068,2]
[310227327,1704403869059,-500.0,0.00035068,2]
[310227328,1704403869069,-584.8,0.00035068,2]
[310227329,1704403869079,-679.5,0.00035068,2]
[310227330,1704403869089,-500.0,0.00035068,2]
[310227331,1704403869099,-813.68,0.00035068,2]
[310227332,1704403869109,-608.75,0.00035068,2]
[310227333,1704403869120,-941.49,0.00035068,2]
[310227334,1704403869130,-701.18,0.00035068,2]
[310227335,1704403869140,-500.0,0.00035068,2]
[310227336,1704403869149,-500.0,0.00035068,2]
[310227337,1704403869158,-984.08,0.00035068,2]
[310227338,1704403869167,-2418.73,0.00035068,2]
[310227339,1704403869177,-500.0,0.00035068,2]
[310227340,1704403869187,-859.09,0.00035068,2]
[310227341,1704403869196,-721.44,0.00035068,2]
[310227342,1704403869206,-500.0,0.00035068,2]
[310227343,1704403869215,-2840.83,0.00035068,2]
[310227344,1704403869225,-837.99,0.00035068,2]
[310227345,1704403869234,-861.66,0.00035068,2]
[310227346,1704403869245,-500.0,0.00035068,2]
[310227347,1704403869254,-721.44,0.00035068,2]
[310227348,1704403869264,-528.09,0.00035068,2]
[310227349,1704403869274,-853.51,0.00035068,2]
[310227350,1704403869284,-500.0,0.00035068,2]
[310227351,1704403869294,-500.0,0.00035068,2]
[310227352,1704403869303,-500.0,0.00035068,2]
[310227353,1704403869314,-769.96,0.00035068,2]
[310227354,1704403869324,-500.0,0.00035068,2]
[310227355,1704403869334,-500.0,0.00035068,2]
[310227356,1704403869345,-500.0,0.00035068,2]
[310227357,1704403869355,-500.0,0.00035068,2]
[310227358,1704403869364,-500.0,0.00035068,2]
[310227359,1704403869374,-500.0,0.00035068,2]
[310227360,1704403869383,-500.0,0.00035068,2]
[310227361,1704403869393,-669.16,0.00035068,2]
[310227362,1704403869403,-500.0,0.00035068,2]
[310227363,1704403869413,-1213.39,0.00035068,2]
[310227364,1704403869423,-500.0,0.00035068,2]
[310227365,1704403869433,-1401.12,0.00035068,2]
[310227366,1704403869443,-645.52,0.00035068,2]
[310227367,1704403869453,-500.0,0.00035068,2]
[310227368,1704403869465,-2121.42,0.00035068,2]
[310227369,1704403869474,-500.0,0.00035068,2]
[310227370,1704403869485,-352.24665625,0.00035068,2]
[310227371,1704403869495,-667.97,0.00035068,2]
[310227372,1704403869505,-500.0,0.00035068,2]
[310227373,1704403869514,-810.45,0.00035068,2]
[310227374,1704403869524,-500.0,0.00035068,2]
[310227375,1704403869533,-150.0,0.00035124,2]
[310227376,1704403869542,-6829.27155038,0.00035143,2]
[310227377,1704403869552,-150.0,0.00035167,2]
[310227378,1704403869561,-150.0,0.00035179,2]
[310227379,1704403869571,-2155.042,0.00035182,2]
[310227380,1704403869580,-608.844,0.00035182,2]
[310227381,1704403869591,-833.0,0.00035182,2]
[310227382,1704403869602,-938.0,0.00035182,2]
[310227383,1704403869612,-1253.0,0.00035182,2]
[310227384,1704403869621,-510.656,0.00035182,2]
[310227385,1704403869631,-150.0,0.0003524,2]
[310227386,1704403869642,-882.26492804,0.00035249,2]
[310227387,1704403869652,-150.0,0.0003525,2]
[310227388,1704403869662,-500.0,0.00035342,2]
[310227389,1704403869671,-500.0,0.00035342,2]
[310227390,1704403869680,-707.71,0.00035342,2]
[310227391,1704403869690,-500.0,0.00035342,2]
[310227392,1704403869700,-500.0,0.00035342,2]
[310227393,1704403869710,-500.0,0.00035342,2]
[310227394,1704403869720,-500.0,0.00035342,2]
[310227395,1704403869729,-500.0,0.00035342,2]
[310227396,1704403869740,-500.0,0.00035342,2]
[310227397,1704403869750,-500.0,0.00035342,2]
[310227398,1704403869760,-500.0,0.00035342,2]
[310227399,1704403869769,-500.0,0.00035342,2]
[310227400,1704403869779,-500.0,0.00035342,2]
[310227401,1704403869789,-500.0,0.00035342,2]
[310227402,1704403869799,-500.0,0.00035342,2]
[310227403,1704403869808,-500.0,0.00035342,2]
[310227404,1704403869817,-639.77071788,0.00035342,2]
[310227405,1704403869827,-500.0,0.00035342,2]
[310227406,1704403869837,-500.0,0.00035342,2]
[310227407,1704403869846,-271.77,0.00035342,2]
[310227408,1704403869856,-500.0,0.00035342,2]
[310227409,1704403869866,-500.0,0.00035342,2]
[310227410,1704403869877,-258.6,0.00035342,2]
[310227411,1704403869887,-500.0,0.00035342,2]
[310227412,1704403869897,-500.0,0.00035342,2]
[310227413,1704403869906,-500.0,0.00035342,2]
[310227414,1704403869917,-189.66754448,0.00035342,2]
[310227415,1704403869927,-500.0,0.00035342,2]
[310227416,1704403869936,-500.0,0.00035342,2]
[310227417,1704403869946,-524.24,0.00035342,2]
[310227418,1704403869957,-500.0,0.00035342,2]
[310227419,1704403869966,-500.0,0.00035342,2]
[310227420,1704403869976,-521.99,0.00035342,2]
[310227421,1704403869985,-287.38678802,0.00035342,2]
[310227422,1704403869996,-500.0,0.00035342,2]
[310227423,1704403870006,-500.0,0.00035342,2]
[310227424,1704403870017,-500.0,0.00035342,2]
[310227425,1704403870027,-500.0,0.00035342,2]
[310227426,1704403870037,-500.0,0.00035342,2]
[310227427,1704403870046,-500.0,0.00035342,2]
[310227428,1704403870056,-500.0,0.00035342,2]
[310227429,1704403870066,-500.0,0.00035342,2]
[310227430,1704403870076,-500.0,0.00035342,2]
[310227431,1704403870086,-500.0,0.00035342,2]
[310227432,1704403870096,-500.0,0.00035342,2]
[310227433,1704403870106,-500.0,0.00035342,2]
[310227434,1704403870116,-500.0,0.00035342,2]
[310227435,1704403870126,-3350.37,0.00035342,2]
[310227436,1704403870136,-498.10494309,0.00035342,2]
[310227437,1704403870146,-500.0,0.00035342,2]
[310227438,1704403870157,-896.02,0.00035342,2]
[310227439,1704403870167,-648.69,0.00035342,2]
[310227440,1704403870178,-500.0,0.00035342,2]
[310227441,1704403870188,-2514.46,0.00035342,2]
[310227442,1704403870198,-626.38,0.00035342,2]
[310227443,1704403870208,-647.02450521,0.00035342,2]
[310227444,1704403870218,-1011.28,0.00035342,2]
[310227445,1704403870227,-500.0,0.00035342,2]
[310227446,1704403870237,-500.0,0.00035342,2]
[310227447,1704403870247,-509.23,0.00035342,2]
[310227448,1704403870257,-500.0,0.00035342,2]
[310227449,1704403870267,-2059.9,0.00035342,2]
[310227450,1704403870277,-500.0,0.00035342,2]
[310227451,1704403870288,-500.0,0.00035342,2]
[310227452,1704403870297,-500.0,0.00035342,2]
[310227453,1704403870306,-651.77,0.00035342,2]
[310227454,1704403870316,-500.0,0.00035342,2]
[310227455,1704403870326,-626.07,0.00035342,2]
[310227456,1704403870335,-500.0,0.00035342,2]
[310227457,1704403870345,-500.0,0.00035342,2]
[310227458,1704403870354,-529.91,0.00035342,2]
[310227459,1704403870364,-2064.33,0.00035342,2]
[310227460,1704403870374,-500.0,0.00035342,2]
[310227461,1704403870383,-509.68,0.00035342,2]
[310227462,1704403870392,-1343.6,0.00035342,2]
[310227463,1704403870402,-500.0,0.00035342,2]
[310227464,1704403870411,-711.75,0.00035342,2]
[310227465,1704403870421,-500.0,0.00035342,2]
[310227466,1704403870430,-500.0,0.00035342,2]
[310227467,1704403870440,-522.78,0.00035342,2]
[310227468,1704403870450,-1077.26,0.00035342,2]
[310227469,1704403870462,-1000.94,0.00035342,2]
[310227470,1704403870472,-500.0,0.00035342,2]
[310227471,1704403870482,-500.0,0.00035342,2]
[310227472,1704403870492,-982.47,0.00035342,2]
[310227473,1704403870502,-500.0,0.00035342,2]
[310227474,1704403870512,-5148.24,0.00035342,2]
[310227475,1704403870522,-500.0,0.00035342,2]
[310227476,1704403870531,-500.0,0.00035342,2]
[310227477,1704403870541,-615.48,0.00035342,2]
[310227478,1704403870552,-421.17,0.00035342,2]
[310227479,1704403870563,-625.78,0.00035342,2]
[310227480,1704403870572,-500.0,0.00035342,2]
[310227481,1704403870583,-500.0,0.00035342,2]
[310227482,1704403870592,-1193.24,0.00035342,2]
[310227483,1704403870602,-500.0,0.00035342,2]
[310227484,1704403870612,-584.8,0.00035342,2]
[310227485,1704403870622,-679.5,0.00035342,2]
[310227486,1704403870632,-500.0,0.00035342,2]
[310227487,1704403870642,-813.68,0.00035342,2]
[310227488,1704403870652,-608.75,0.00035342,2]
[310227489,1704403870662,-941.49,0.00035342,2]
[310227490,1704403870672,-701.18,0.00035342,2]
[310227491,1704403870682,-500.0,0.00035342,2]
[310227492,1704403870692,-500.0,0.00035342,2]
[310227493,1704403870702,-984.08,0.00035342,2]
[310227494,1704403870713,-2418.73,0.00035342,2]
[310227495,1704403870723,-500.0,0.00035342,2]
[310227496,1704403870733,-721.44,0.00035342,2]
[310227497,1704403870744,-859.09,0.00035342,2]
[310227498,1704403870754,-500.0,0.00035342,2]
[310227499,1704403870763,-2840.83,0.00035342,2]
[310227500,1704403870773,-837.99,0.00035342,2]
[310227501,1704403870783,-861.66,0.00035342,2]
[310227502,1704403870792,-500.0,0.00035342,2]
[310227503,1704403870802,-721.44,0.00035342,2]
[310227504,1704403870811,-528.09,0.00035342,2]
[310227505,1704403870822,-853.51,0.00035342,2]
[310227506,1704403870831,-500.0,0.00035342,2]
[310227507,1704403870841,-500.0,0.00035342,2]
[310227508,1704403870851,-500.0,0.00035342,2]
[310227509,1704403870860,-769.96,0.00035342,2]
[310227510,1704403870871,-500.0,0.00035342,2]
[310227511,1704403870881,-500.0,0.00035342,2]
[310227512,1704403870891,-500.0,0.00035342,2]
[310227513,1704403870903,-500.0,0.00035342,2]
[310227514,1704403870913,-500.0,0.00035342,2]
[310227515,1704403870923,-500.0,0.00035342,2]
[310227516,1704403870933,-500.0,0.00035342,2]
[310227517,1704403870944,-669.16,0.00035342,2]
[310227518,1704403870954,-500.0,0.00035342,2]
[310227519,1704403870965,-1213.39,0.00035342,2]
[310227520,1704403870975,-500.0,0.00035342,2]
[310227521,1704403870984,-1401.12,0.00035342,2]
[310227522,1704403870994,-645.52,0.00035342,2]
[310227523,1704403871005,-500.0,0.00035342,2]
[310227524,1704403871016,-2121.42,0.00035342,2]
[310227525,1704403871075,-500.0,0.00035342,2]
[310227526,1704403871085,-667.97,0.00035342,2]
[310227527,1704403871095,-500.0,0.00035342,2]
[310227528,1704403871105,-810.45,0.00035342,2]
[310227529,1704403871115,-500.0,0.00035342,2]
[310227530,1704403871126,-171.14,0.0003536,2]
[310227531,1704403871135,-150.0,0.00035363,2]
[310227532,1704403871145,-1534.2792282,0.00035434,8]
[310227533,1704403871154,-150.0,0.00035444,2]
[310227534,1704403871165,-150.0,0.00035542,2]
[310227535,1704403871177,-247.4404965,0.00035565,2]
[310227536,1704403871187,-167.0,0.00035584,2]
[310227537,1704403871198,-153.02853765,0.00035595,14]
[310227538,1704403871209,-176.29,0.000356,2]
[310227539,1704403871220,-150.0,0.00035608,2]
[310227540,1704403871229,-552.5,0.00035616,2]
[310227541,1704403871239,-500.0,0.00035616,2]
[310227542,1704403871249,-707.71,0.00035616,2]
[310227543,1704403871258,-500.0,0.00035616,2]
[310227544,1704403871268,-500.0,0.00035616,2]
[310227545,1704403871277,-500.0,0.00035616,2]
[310227546,1704403871287,-500.0,0.00035616,2]
[310227547,1704403871295,-500.0,0.00035616,2]
[310227548,1704403871305,-500.0,0.00035616,2]
[310227549,1704403871315,-500.0,0.00035616,2]
[310227550,1704403871324,-500.0,0.00035616,2]
[310227551,1704403871333,-500.0,0.00035616,2]
[310227552,1704403871343,-500.0,0.00035616,2]
[310227553,1704403871354,-500.0,0.00035616,2]
[310227554,1704403871364,-500.0,0.00035616,2]
[310227555,1704403871373,-500.0,0.00035616,2]
[310227556,1704403871382,-500.0,0.00035616,2]
[310227557,1704403871392,-500.0,0.00035616,2]
[310227558,1704403871402,-500.0,0.00035616,2]
[310227559,1704403871411,-500.0,0.00035616,2]
[310227560,1704403871421,-500.0,0.00035616,2]
[310227561,1704403871430,-500.0,0.00035616,2]
[310227562,1704403871439,-500.0,0.00035616,2]
[310227563,1704403871449,-500.0,0.00035616,2]
[310227564,1704403871459,-500.0,0.00035616,2]
[310227565,1704403871469,-524.24,0.00035616,2]
[310227566,1704403871479,-500.0,0.00035616,2]
[310227567,1704403871488,-608.46,0.00035616,2]
[310227568,1704403871497,-521.99,0.00035616,2]
[310227569,1704403871506,-609.27044882,0.00035616,2]
[310227570,1704403871515,-500.0,0.00035616,2]
[310227571,1704403871525,-187.52,0.00035616,2]
[310227572,1704403871533,-500.0,0.00035616,2]
[310227573,1704403871543,-500.0,0.00035616,2]
[310227574,1704403871552,-500.0,0.00035616,2]
[310227575,1704403871561,-564.68,0.00035616,2]
[310227576,1704403871571,-500.0,0.00035616,2]
[310227577,1704403871581,-500.0,0.00035616,2]
[310227578,1704403871590,-500.0,0.00035616,2]
[310227579,1704403871599,-500.0,0.00035616,2]
[310227580,1704403871609,-561.69,0.00035616,2]
[310227581,1704403871619,-3350.37,0.00035616,2]
[310227582,1704403871629,-500.0,0.00035616,2]
[310227583,1704403871639,-896.02,0.00035616,2]
[310227584,1704403871650,-648.69,0.00035616,2]
[310227585,1704403871659,-2514.46,0.00035616,2]
[310227586,1704403871669,-1011.28,0.00035616,2]
[310227587,1704403871678,-500.0,0.00035616,2]
[310227588,1704403871688,-500.0,0.00035616,2]
[310227589,1704403871698,-509.23,0.00035616,2]
[310227590,1704403871708,-500.0,0.00035616,2]
[310227591,1704403871718,-2059.9,0.00035616,2]
[310227592,1704403871727,-500.0,0.00035616,2]
[310227593,1704403871737,-500.0,0.00035616,2]
[310227594,1704403871747,-500.0,0.00035616,2]
[310227595,1704403871756,-651.77,0.00035616,2]
[310227596,1704403871766,-500.0,0.00035616,2]
[310227597,1704403871776,-626.07,0.00035616,2]
[310227598,1704403871786,-500.0,0.00035616,2]
[310227599,1704403871796,-616.51,0.00035616,2]
[310227600,1704403871806,-529.91,0.00035616,2]
[310227601,1704403871815,-2064.33,0.00035616,2]
[310227602,1704403871825,-500.0,0.00035616,2]
[310227603,1704403871835,-509.68,0.00035616,2]
[310227604,1704403871844,-1343.6,0.00035616,2]
[310227605,1704403871854,-500.0,0.00035616,2]
[310227606,1704403871863,-711.75,0.00035616,2]
[310227607,1704403871873,-500.0,0.00035616,2]
[310227608,1704403871882,-500.0,0.00035616,2]
[310227609,1704403871892,-522.78,0.00035616,2]
[310227610,1704403871902,-1077.26,0.00035616,2]
[310227611,1704403871914,-1000.94,0.00035616,2]
[310227612,1704403871923,-500.0,0.00035616,2]
[310227613,1704403871933,-500.0,0.00035616,2]
[310227614,1704403871942,-982.47,0.00035616,2]
[310227615,1704403871952,-500.0,0.00035616,2]
[310227616,1704403871961,-5148.24,0.00035616,2]
[310227617,1704403871972,-500.0,0.00035616,2]
[310227618,1704403871984,-500.0,0.00035616,2]
[310227619,1704403871996,-615.48,0.00035616,2]
[310227620,1704403872006,-500.0,0.00035616,2]
[310227621,1704403872020,-625.78,0.00035616,2]
[310227622,1704403872031,-500.0,0.00035616,2]
[310227623,1704403872042,-1193.24,0.00035616,2]
[310227624,1704403872053,-500.0,0.00035616,2]
[310227625,1704403872063,-584.8,0.00035616,2]
[310227626,1704403872074,-679.5,0.00035616,2]
[310227627,1704403872085,-500.0,0.00035616,2]
[310227628,1704403872096,-813.68,0.00035616,2]
[310227629,1704403872106,-608.75,0.00035616,2]
[310227630,1704403872116,-941.49,0.00035616,2]
[310227631,1704403872126,-701.18,0.00035616,2]
[310227632,1704403872137,-500.0,0.00035616,2]
[310227633,1704403872147,-278.76763243,0.00035616,2]
[310227634,1704403872157,-984.08,0.00035616,2]
[310227635,1704403872168,-2418.73,0.00035616,2]
[310227636,1704403872178,-500.0,0.00035616,2]
[310227637,1704403872187,-721.44,0.00035616,2]
[310227638,1704403872197,-859.09,0.00035616,2]
[310227639,1704403872206,-500.0,0.00035616,2]
[310227640,1704403872217,-2840.83,0.00035616,2]
[310227641,1704403872227,-837.99,0.00035616,2]
[310227642,1704403872237,-861.66,0.00035616,2]
[310227643,1704403872247,-500.0,0.00035616,2]
[310227644,1704403872258,-721.44,0.00035616,2]
[310227645,1704403872267,-528.09,0.00035616,2]
[310227646,1704403872277,-853.51,0.00035616,2]
[310227647,1704403872287,-500.0,0.00035616,2]
[310227648,1704403872298,-500.0,0.00035616,2]
[310227649,1704403872307,-500.0,0.00035616,2]
[310227650,1704403872317,-769.96,0.00035616,2]
[310227651,1704403872327,-505.6019605,0.00035616,2]
[310227652,1704403872338,-500.0,0.00035616,2]
[310227653,1704403872348,-500.0,0.00035616,2]
[310227654,1704403872357,-500.0,0.00035616,2]
[310227655,1704403872366,-500.0,0.00035616,2]
[310227656,1704403872376,-500.0,0.00035616,2]
[310227657,1704403872385,-494.04165334,0.00035616,2]
[310227658,1704403872394,-669.16,0.00035616,2]
[310227659,1704403872404,-500.0,0.00035616,2]
[310227660,1704403872413,-1213.39,0.00035616,2]
[310227661,1704403872422,-500.0,0.00035616,2]
[310227662,1704403872431,-1401.12,0.00035616,2]
[310227663,1704403872441,-645.52,0.00035616,2]
[310227664,1704403872451,-500.0,0.00035616,2]
[310227665,1704403872461,-2121.42,0.00035616,2]
[310227666,1704403872470,-500.0,0.00035616,2]
[310227667,1704403872479,-667.97,0.00035616,2]
[310227668,1704403872488,-500.0,0.00035616,2]